bitfinex-derivatives/quotes_BTCF0:USTF0_20240902
["timestamp","ask_amount","ask_price","bid_price","bid_amount"]
[1725240753308,0.60185224,57539.0,57538.0,0.0002607]
[1725240753606,0.60186295,57539.0,57538.0,0.0002607]
[1725240755302,0.60186407,57539.0,57538.0,0.0002607]
[1725240755503,0.96266407,57539.0,57538.0,0.0002607]
[1725240755707,0.719101,57539.0,57538.0,0.0002607]
[1725240756209,0.358301,57539.0,57538.0,0.0002607]
[1725240756799,0.719101,57539.0,57538.0,0.0002607]
[1725240757196,0.4722,57539.0,57538.0,0.0002607]
[1725240757399,0.1114,57539.0,57538.0,0.0871637]
[1725240758204,0.1114,57539.0,57538.0,0.4479637]
[1725240758597,0.1114,57539.0,57538.0,1.5693637]
[1725240758598,0.0014,57539.0,57538.0,1.5693637]
[1725240758903,0.0004,57539.0,57538.0,1.5693637]
[1725240759314,0.0004,57539.0,57538.0,1.57302975]
[1725240760716,0.067,57558.0,57549.0,0.086886]
[1725240761006,0.067,57558.0,57549.0,4.377686]
[1725240761213,0.00364199,57554.0,57549.0,4.377686]
[1725240762303,0.00364199,57554.0,57549.0,4.378686]
[1725240762505,0.1102607,57550.0,57549.0,0.448686]
[1725240762705,0.16359458,57550.0,57549.0,0.448686]
[1725240762901,0.16359458,57550.0,57549.0,0.3618]
[1725240763619,0.16359458,57550.0,57549.0,0.3628]
[1725240763808,1.53175958,57550.0,57549.0,0.002]
[1725240764113,1.5940798,57550.0,57549.0,0.002]
[1725240764311,0.9940798,57550.0,57549.0,0.002]
[1725240764515,0.4727998,57550.0,57549.0,0.002]
[1725240767006,0.2259148,57550.0,57549.0,0.002]
[1725240767209,0.16359458,57550.0,57549.0,0.162]
[1725240767618,0.30088923,57550.0,57549.0,0.248886]
[1725240767815,0.35422311,57550.0,57549.0,0.248886]
[1725240768119,0.16359458,57550.0,57549.0,0.248886]
[1725240769327,0.16359458,57550.0,57549.0,0.088886]
[1725240770613,0.1102607,57550.0,57549.0,0.088886]
[1725240777725,0.16359089,57550.0,57549.0,0.088886]
[1725240779130,0.16359155,57550.0,57549.0,0.088886]
[1725240781015,0.16359345,57550.0,57549.0,0.088886]
[1725240781220,0.16359345,57550.0,57549.0,0.002]
[1725240781221,0.41047845,57550.0,57549.0,0.002]
[1725240781929,0.25047845,57550.0,57549.0,0.002]
[1725240783818,0.16359345,57550.0,57549.0,0.002]
[1725240784218,0.16359345,57550.0,57549.0,0.088886]
[1725240784519,0.16359345,57550.0,57549.0,0.449686]
[1725240785024,0.16459345,57550.0,57549.0,0.449686]
[1725240785523,0.16359345,57550.0,57549.0,0.448686]
[1725240785825,0.1102607,57550.0,57549.0,0.52746502]
[1725240786026,0.1102607,57550.0,57549.0,0.458686]
[1725240786231,0.0649,57559.0,57549.0,0.458686]
[1725240786232,0.086852,57572.0,57551.0,0.086883]
[1725240786434,0.1,57572.0,57565.0,0.3608]
[1725240786619,0.16,57571.0,57562.0,0.05163508]
[1725240786823,0.0004,57563.0,57562.0,0.13850108]
[1725240787018,0.1104,57563.0,57562.0,0.086866]
[1725240787224,0.1104,57563.0,57562.0,0.13850108]
[1725240787533,0.1104,57563.0,57562.0,0.086866]
[1725240788029,0.1104,57563.0,57560.0,0.05163508]
[1725240788329,0.1104,57563.0,57561.0,0.05163508]
[1725240788528,0.11,57563.0,57561.0,0.05163508]
[1725240789027,0.16,57562.0,57560.0,0.05163508]
[1725240789226,0.086868,57561.0,57560.0,0.001]
[1725240789431,0.393368,57561.0,57560.0,0.001]
[1725240789632,0.914568,57561.0,57560.0,0.001]
[1725240789832,0.914568,57561.0,57557.0,0.0002607]
[1725240790150,0.0004,57558.0,57557.0,0.0002607]
[1725240790331,0.1104,57558.0,57557.0,0.0002607]
[1725240791037,0.1094,57558.0,57557.0,0.0002607]
[1725240791924,0.1084,57558.0,57557.0,0.0002607]
[1725240792631,0.16172714,57558.0,57557.0,0.0002607]
[1725240795138,0.24860014,57558.0,57557.0,0.0002607]
[1725240796821,0.2528792,57558.0,57557.0,0.0002607]
[1725240798323,0.2528792,57558.0,57549.0,3.858445]
[1725240798324,1.5340792,57558.0,57549.0,0.00156]
[1725240798525,1.5340792,57558.0,57537.0,0.3245]
[1725240798526,0.5212,57550.0,57537.0,0.3245]
[1725240798728,0.5212,57550.0,57531.0,0.426]
[1725240798729,0.0004,57538.0,57531.0,0.426]
[1725240798931,0.05332714,57537.0,57534.0,0.086909]
[1725240799233,0.16332714,57537.0,57536.0,0.3608]
[1725240799641,0.16032714,57537.0,57536.0,0.3608]
[1725240800742,0.11,57537.0,57536.0,0.3608]
[1725240801232,0.11,57537.0,57536.0,0.3638]
[1725240801438,1.318304,57537.0,57536.0,0.003]
[1725240801633,1.456904,57537.0,57536.0,0.003]
[1725240801837,1.456904,57537.0,57531.0,0.0002607]
[1725240801838,0.086912,57532.0,57531.0,0.0002607]
[1725240802034,1.328112,57532.0,57531.0,0.0002607]
[1725240802332,1.249552,57532.0,57531.0,0.0002607]
[1725240802534,0.728112,57532.0,57531.0,0.0002607]
[1725240802734,1.249552,57532.0,57531.0,0.0002607]
[1725240803030,0.728112,57532.0,57531.0,0.0002607]
[1725240803431,1.249552,57532.0,57531.0,0.0002607]
[1725240803942,1.249552,57532.0,57531.0,0.0032607]
[1725240804244,1.249552,57532.0,57531.0,0.0082607]
[1725240804737,0.728112,57532.0,57531.0,0.0082607]
[1725240804932,0.728112,57532.0,57531.0,0.0052607]
[1725240805636,0.73248744,57532.0,57531.0,0.0052607]
[1725240806639,1.25392744,57532.0,57531.0,0.0052607]
[1725240807144,0.73248744,57532.0,57531.0,0.0052607]
[1725240807743,1.25392744,57532.0,57531.0,0.0052607]
[1725240808543,0.73248744,57532.0,57531.0,0.0052607]
[1725240814043,1.25392744,57532.0,57531.0,0.0052607]
[1725240815148,0.73248744,57532.0,57531.0,0.0052607]
[1725240815332,1.25392744,57532.0,57531.0,0.0052607]
[1725240816145,0.73248744,57532.0,57531.0,0.0052607]
[1725240816845,1.25392744,57532.0,57531.0,0.0052607]
[1725240817446,0.73248744,57532.0,57531.0,0.0052607]
[1725240826648,0.1204,57532.0,57531.0,0.0052607]
[1725240826847,0.1204,57532.0,57531.0,0.0921747]
[1725240827658,0.1204,57532.0,57531.0,0.4529747]
[1725240827852,0.0004,57532.0,57531.0,0.4529747]
[1725240828148,0.1104,57532.0,57531.0,0.4529747]
[1725240828346,0.1104,57532.0,57531.0,0.0921747]
[1725240828657,0.2704,57532.0,57531.0,0.1611215]
[1725240830350,0.2704,57532.0,57531.0,0.0921747]
[1725240831758,0.1104,57532.0,57531.0,0.0921747]
[1725240839458,0.2506625,57532.0,57531.0,0.0921747]
[1725240839662,0.1637505,57532.0,57531.0,0.0921747]
[1725240841160,0.16375107,57532.0,57531.0,0.0921747]
[1725240842357,0.1104,57532.0,57531.0,0.0921747]
[1725240842769,0.1104,57532.0,57531.0,1.3736147]
[1725240843063,0.0004,57532.0,57531.0,1.3736147]
[1725240845357,0.0004,57532.0,57531.0,1.4605287]
[1725240845771,0.0004,57538.0,57537.0,0.086904]
[1725240845960,0.0904,57538.0,57537.0,0.447704]
[1725240846158,0.0904,57538.0,57537.0,0.516104]
[1725240846364,0.0004,57538.0,57537.0,0.516104]
[1725240847062,0.0002607,57542.0,57541.0,0.086898]
[1725240847260,0.1302607,57542.0,57541.0,0.086898]
[1725240847461,0.1302607,57542.0,57541.0,0.15577296]
[1725240847661,0.1302607,57542.0,57541.0,0.086898]
[1725240848462,0.1302607,57542.0,57541.0,3.856898]
[1725240848867,0.1302607,57542.0,57541.0,3.857898]
[1725240848868,0.1382607,57542.0,57541.0,3.857898]
[1725240849164,0.0082607,57542.0,57541.0,4.979258]
[1725240849362,0.1282607,57542.0,57541.0,3.9267372]
[1725240849558,0.1282607,57542.0,57541.0,0.088898]
[1725240851965,0.2855577,57542.0,57541.0,0.002]
[1725240852159,1.84102801,57542.0,57541.0,0.002]
[1725240852363,0.08691,57533.0,57532.0,0.05164103]
[1725240852561,0.086912,57532.0,57531.0,0.0002607]
[1725240852862,0.25026776,57532.0,57531.0,0.0002607]
[1725240853470,0.24926776,57532.0,57531.0,0.0002607]
[1725240853673,0.24726776,57532.0,57531.0,0.0002607]
[1725240854272,0.24726776,57532.0,57531.0,0.0012607]
[1725240854767,0.16335576,57532.0,57531.0,0.0012607]
[1725240854968,0.11,57532.0,57531.0,0.0012607]
[1725240855169,0.118,57532.0,57531.0,0.0012607]
[1725240855772,0.119,57532.0,57531.0,0.0012607]
[1725240856074,0.129,57532.0,57531.0,0.0012607]
[1725240856375,0.128,57532.0,57531.0,0.0881747]
[1725240856678,0.118,57532.0,57531.0,0.0871747]
[1725240856866,0.118,57532.0,57531.0,0.0881747]
[1725240856867,0.126,57532.0,57531.0,0.0881747]
[1725240857869,0.26626747,57532.0,57531.0,0.0012607]
[1725240858972,1.66159898,57532.0,57512.0,0.3245]
[1725240859176,0.1604,57519.0,57513.0,0.08694]
[1725240859371,0.2704,57519.0,57514.0,0.086939]
[1725240859676,0.2704,57519.0,57515.0,0.086938]
[1725240859979,0.1104,57519.0,57515.0,0.086938]
[1725240860182,0.1104,57519.0,57518.0,0.3678]
[1725240860868,0.1114,57519.0,57518.0,0.3678]
[1725240861067,0.1114,57519.0,57518.0,0.454733]
[1725240861863,0.1114,57519.0,57518.0,0.447733]
[1725240862071,0.1114,57519.0,57518.0,0.453733]
[1725240862269,0.1104,57519.0,57518.0,0.453733]
[1725240862471,0.1144,57519.0,57518.0,0.453733]
[1725240862879,0.1184,57519.0,57518.0,0.447733]
[1725240863381,0.1184,57519.0,57518.0,0.49938282]
[1725240863677,0.1184,57519.0,57518.0,0.447733]
[1725240865483,0.1184,57519.0,57518.0,0.969293]
[1725240865680,0.0084,57519.0,57518.0,0.969293]
[1725240865981,0.0084,57519.0,57518.0,1.0381322]
[1725240866182,0.0184,57519.0,57518.0,4.217733]
[1725240866581,0.0184,57519.0,57518.0,0.447733]
[1725240868280,0.0144,57519.0,57518.0,0.452733]
[1725240868869,0.0104,57519.0,57518.0,0.452733]
[1725240869080,0.0124,57519.0,57518.0,0.447733]
[1725240869783,0.0124,57519.0,57518.0,1.569293]
[1725240869784,0.0114,57519.0,57518.0,1.569293]
[1725240869979,0.0014,57519.0,57518.0,1.569293]
[1725240870281,0.0001393,57519.0,57518.0,1.569293]
[1725240870881,0.0001393,57519.0,57518.0,1.656226]
[1725240871085,3e-07,57519.0,57518.0,1.743159]
[1725240871980,0.1412,57546.0,57542.0,0.086897]
[1725240872182,0.11,57546.0,57539.0,0.16]
[1725240872384,0.11,57546.0,57545.0,0.086892]
[1725240873380,0.119,57546.0,57540.0,0.0871607]
[1725240873588,0.16,57542.0,57540.0,0.0871607]
[1725240873884,0.1397,57541.0,57540.0,0.0871607]
[1725240874189,0.2497,57541.0,57540.0,0.0871607]
[1725240875285,0.2497,57541.0,57540.0,0.0881607]
[1725240875480,0.11,57541.0,57540.0,0.0881607]
[1725240875986,0.11,57541.0,57540.0,0.0871607]
[1725240876177,0.119,57541.0,57540.0,0.0891607]
[1725240877278,0.009,57541.0,57540.0,0.0891607]
[1725240877486,0.009,57541.0,57540.0,0.1554607]
[1725240879191,0.009,57541.0,57540.0,0.0891607]
[1725240879786,0.009,57541.0,57540.0,0.1001607]
[1725240879787,0.001,57541.0,57540.0,0.1001607]
[1725240880284,0.0726,57543.0,57540.0,0.0931607]
[1725240880491,0.0726,57543.0,57540.0,0.0961607]
[1725240880887,0.16,57542.0,57540.0,0.0092607]
[1725240881192,0.086898,57541.0,57540.0,0.0092607]
[1725240881394,0.196898,57541.0,57540.0,0.0032607]
[1725240881695,0.197898,57541.0,57540.0,0.0032607]
[1725240881997,0.562698,57541.0,57540.0,0.0002607]
[1725240882390,0.562698,57541.0,57540.0,0.0012607]
[1725240882601,0.568698,57541.0,57540.0,0.0022607]
[1725240883092,1.7424076,57541.0,57540.0,0.0002607]
[1725240883292,1.7414076,57541.0,57540.0,0.0022607]
[1725240883494,1.74563524,57541.0,57540.0,0.0022607]
[1725240884199,1.75063524,57541.0,57540.0,0.0022607]
[1725240884786,1.75063524,57541.0,57522.0,0.447726]
[1725240884787,0.086901,57540.0,57522.0,0.447726]
[1725240884988,0.086901,57540.0,57517.0,4.219294]
[1725240884989,0.16,57524.0,57517.0,4.219294]
[1725240885197,0.0004,57523.0,57517.0,0.447734]
[1725240885399,0.0004,57518.0,57517.0,0.447734]
[1725240885597,0.1,57518.0,57517.0,0.447734]
[1725240885895,0.099,57518.0,57517.0,0.447734]
[1725240886095,0.099,57518.0,57517.0,0.45202698]
[1725240886695,0.1,57518.0,57517.0,0.45202698]
[1725240888099,0.102,57518.0,57517.0,0.45202698]
[1725240890906,0.05850722,57518.0,57517.0,0.45202698]
[1725240891096,0.05650722,57518.0,57517.0,0.45202698]
[1725240892108,0.05750722,57518.0,57517.0,0.45202698]
[1725240892899,0.05650722,57518.0,57517.0,0.45302698]
[1725240893402,0.05650722,57518.0,57517.0,0.45202698]
[1725240894699,0.05650722,57518.0,57517.0,0.09122698]
[1725240896091,0.05750722,57518.0,57517.0,0.09122698]
[1725240896305,0.05850722,57518.0,57517.0,0.45202698]
[1725240897707,0.05650722,57518.0,57517.0,0.45502698]
[1725240898496,0.05650722,57518.0,57517.0,0.45202698]
[1725240899201,0.05650722,57518.0,57517.0,0.09122698]
[1725240899393,0.05550722,57518.0,57517.0,0.09422698]
[1725240900002,0.05550722,57518.0,57517.0,0.14678971]
[1725240900213,0.05550722,57518.0,57517.0,0.090934]
[1725240901009,0.05550722,57518.0,57517.0,0.093934]
[1725240901210,0.14244022,57518.0,57517.0,0.007]
[1725240901601,0.14244022,57518.0,57517.0,0.004]
[1725240901797,0.14544022,57518.0,57517.0,0.004]
[1725240902306,0.14979514,57518.0,57517.0,0.003]
[1725240903009,0.15179514,57518.0,57515.0,0.05156202]
[1725240903212,0.0004,57516.0,57515.0,0.05156202]
[1725240903413,0.1004,57516.0,57515.0,0.05159638]
[1725240904301,0.1004,57516.0,57514.0,0.086939]
[1725240904500,0.0004,57515.0,57514.0,0.086939]
[1725240904698,0.1304,57515.0,57514.0,0.086939]
[1725240906105,0.1304,57515.0,57514.0,0.13852251]
[1725240906303,0.1304,57515.0,57514.0,0.086939]
[1725240906698,0.1304,57515.0,57514.0,0.087939]
[1725240907210,0.738938,57515.0,57514.0,0.05258929]
[1725240907412,1.786676,57515.0,57514.0,1e-06]
[1725240907607,1.786676,57515.0,57500.0,0.05158929]
[1725240907608,0.086959,57501.0,57500.0,0.05158929]
[1725240907805,0.2704,57501.0,57496.0,0.05158929]
[1725240908007,0.086967,57496.0,57493.0,0.05985]
[1725240908209,0.0004,57494.0,57493.0,0.00826071]
[1725240908411,0.11,57494.0,57493.0,0.00826071]
[1725240908809,0.098,57494.0,57493.0,0.00826071]
[1725240909403,0.184969,57494.0,57493.0,0.00826071]
[1725240909615,0.18928747,57494.0,57493.0,0.00826071]
[1725240910117,0.18328747,57494.0,57493.0,0.00826071]
[1725240910411,0.18328747,57494.0,57493.0,0.00926071]
[1725240910606,0.18328747,57494.0,57493.0,0.01126071]
[1725240911617,1.30508747,57494.0,57493.0,0.01126071]
[1725240913007,1.31608747,57494.0,57493.0,0.00826071]
[1725240913212,1.32808747,57494.0,57493.0,0.00926071]
[1725240913608,1.33108747,57494.0,57493.0,0.00926071]
[1725240914518,1.33308747,57494.0,57493.0,0.00926071]
[1725240915519,0.086977,57489.0,57488.0,0.0002607]
[1725240915723,0.27,57489.0,57474.0,0.086999]
[1725240915916,0.16,57477.0,57474.0,0.086999]
[1725240916422,0.28,57477.0,57474.0,0.086999]
[1725240916616,0.12,57477.0,57474.0,0.086999]
[1725240917211,0.12,57477.0,57470.0,0.08726594]
[1725240917410,0.12,57477.0,57475.0,0.3618]
[1725240917916,0.12,57477.0,57475.0,0.001]
[1725240919420,0.12428408,57477.0,57475.0,0.001]
[1725240922720,0.12428408,57477.0,57470.0,0.08726494]
[1725240922928,0.16,57475.0,57470.0,0.08726494]
[1725240923127,0.28,57475.0,57471.0,0.087003]
[1725240923820,0.28,57475.0,57472.0,0.087003]
[1725240924418,0.284,57475.0,57472.0,0.087003]
[1725240924821,0.284,57475.0,57473.0,3.77]
[1725240925231,0.284,57475.0,57472.0,0.087003]
[1725240925426,0.0004,57473.0,57472.0,0.087003]
[1725240925725,0.0004,57473.0,57472.0,0.448203]
[1725240925726,0.13,57473.0,57472.0,0.448203]
[1725240926623,0.136,57473.0,57472.0,0.448203]
[1725240926826,0.136,57473.0,57472.0,0.087403]
[1725240927720,0.142,57473.0,57472.0,0.087403]
[1725240929325,0.142,57473.0,57472.0,0.13899229]
[1725240929517,0.142,57473.0,57472.0,0.087403]
[1725240929717,0.142,57473.0,57472.0,0.13887027]
[1725240930232,1.798802,57473.0,57472.0,0.0518707]
[1725240930423,0.522,57472.0,57463.0,0.0514707]
[1725240930619,0.522,57472.0,57453.0,0.1441]
[1725240930620,0.087024,57458.0,57457.0,0.0514707]
[1725240930927,0.087025,57457.0,57456.0,0.0514707]
[1725240931124,0.4785,57457.0,57449.0,0.0514707]
[1725240931324,0.087037,57450.0,57447.0,0.0514707]
[1725240931528,0.1604,57448.0,57447.0,0.0514707]
[1725240931722,0.2704,57448.0,57445.0,0.00026094]
[1725240931921,0.0004,57446.0,57445.0,0.00026094]
[1725240932120,0.1204,57446.0,57445.0,0.00026094]
[1725240933629,0.12474188,57446.0,57445.0,0.00026094]
[1725240933833,1.26498188,57446.0,57445.0,0.00026094]
[1725240935941,1.22642498,57446.0,57445.0,0.00026094]
[1725240936525,1.23142498,57446.0,57445.0,0.00066094]
[1725240936829,0.63142498,57446.0,57445.0,0.00066094]
[1725240938826,0.10918498,57446.0,57445.0,0.00066094]
[1725240941539,0.10918498,57446.0,57445.0,0.06942575]
[1725240942037,0.10918498,57446.0,57445.0,0.00066094]
[1725240942537,0.10918498,57446.0,57445.0,0.08770494]
[1725240944132,0.05258218,57446.0,57445.0,0.08770494]
[1725240944330,0.028,57446.0,57445.0,0.76994494]
[1725240944535,0.16,57456.0,57445.0,0.81554979]
[1725240944830,0.28,57456.0,57454.0,0.0686681]
[1725240945232,0.087033,57452.0,57451.0,0.0686681]
[1725240945436,0.2904,57452.0,57449.0,0.0686681]
[1725240945741,0.16,57450.0,57447.0,0.0686681]
[1725240945944,0.1604,57448.0,57446.0,0.0686681]
[1725240946242,0.2804,57448.0,57445.0,0.06932904]
[1725240946439,0.2804,57448.0,57446.0,0.0686681]
[1725240946645,0.087041,57447.0,57446.0,0.0686681]
[1725240946848,0.206041,57447.0,57446.0,0.0686681]
[1725240947048,0.206041,57447.0,57445.0,0.07032904]
[1725240947241,0.206041,57447.0,57446.0,0.001]
[1725240947443,0.206041,57447.0,57446.0,0.0696681]
[1725240947849,0.566841,57447.0,57446.0,0.0696681]
[1725240948045,0.568841,57447.0,57446.0,0.001]
[1725240948342,0.21236912,57447.0,57446.0,0.001]
[1725240948547,0.21236912,57447.0,57446.0,0.0696681]
[1725240948747,0.21236912,57447.0,57446.0,0.001]
[1725240949340,0.22236912,57447.0,57446.0,0.002]
[1725240949843,1.34360912,57447.0,57446.0,0.002]
[1725240950039,1.34860912,57447.0,57446.0,0.002]
[1725240950240,1.34860912,57447.0,57446.0,0.05257054]
[1725240950241,1.33960912,57447.0,57446.0,0.05257054]
[1725240950446,1.34960912,57447.0,57446.0,0.002]
[1725240950838,1.35460912,57447.0,57446.0,0.002]
[1725240951039,1.61936812,57447.0,57446.0,0.001]
[1725240951341,0.174084,57446.0,57445.0,0.00066094]
[1725240951545,0.816724,57446.0,57445.0,0.00066094]
[1725240951852,1.415724,57446.0,57445.0,0.00066094]
[1725240952149,0.174094,57443.0,57442.0,0.05158261]
[1725240952449,0.174094,57443.0,57397.0,0.2749949]
[1725240952450,0.087048,57442.0,57440.0,0.05159912]
[1725240952654,0.087048,57442.0,57425.0,0.10794819]
[1725240952655,0.086051,57440.0,57439.0,0.05159912]
[1725240952951,0.356051,57440.0,57439.0,0.05159912]
[1725240953145,1.478731,57440.0,57439.0,0.05159912]
[1725240953445,1.478731,57440.0,57436.0,0.0686681]
[1725240953446,1.39168,57440.0,57436.0,0.0686681]
[1725240953653,0.5212,57437.0,57436.0,0.0686681]
[1725240953851,0.6312,57437.0,57436.0,0.0686681]
[1725240954047,1.15252,57437.0,57436.0,0.0686681]
[1725240954255,1.15152,57437.0,57436.0,0.0686681]
[1725240954550,1.15352,57437.0,57436.0,0.0688484]
[1725240954855,0.087059,57435.0,57434.0,0.00017416]
[1725240955041,0.087063,57432.0,57430.0,0.06885129]
[1725240955250,0.087068,57429.0,57428.0,0.06885129]
[1725240955442,0.087069,57428.0,57427.0,0.06885129]
[1725240955651,0.357469,57428.0,57427.0,0.06885129]
[1725240955953,0.27,57428.0,57427.0,0.06885129]
[1725240956251,0.357069,57428.0,57427.0,0.06885129]
[1725240956446,0.086071,57427.0,57423.0,0.08583512]
[1725240956647,0.1604,57424.0,57418.0,0.19063446]
[1725240956949,0.2694,57424.0,57423.0,0.08612925]
[1725240957141,0.2694,57424.0,57423.0,0.21884136]
[1725240957346,0.2684,57424.0,57423.0,0.13271316]
[1725240958153,0.2714,57424.0,57423.0,0.06893481]
[1725240958351,0.2714,57424.0,57422.0,0.06893481]
[1725240958548,0.0004,57423.0,57422.0,0.06893481]
[1725240958754,0.0004,57423.0,57420.0,0.0664]
[1725240958755,0.1204,57423.0,57421.0,0.06893481]
[1725240959057,0.0004,57422.0,57421.0,0.06893481]
[1725240959351,0.1204,57422.0,57418.0,0.08616852]
[1725240959657,0.12,57422.0,57419.0,0.30596383]
[1725240959958,0.12,57422.0,57420.0,0.08616852]
[1725240960258,0.121,57422.0,57420.0,0.08616852]
[1725240960455,0.121,57422.0,57421.0,0.13271171]
[1725240960655,0.121,57422.0,57421.0,0.21907678]
[1725240960859,0.121,57422.0,57418.0,0.002]
[1725240960860,0.087083,57419.0,57418.0,0.002]
[1725240961067,0.377483,57419.0,57418.0,0.002]
[1725240961267,1.4112,57419.0,57410.0,0.10355046]
[1725240961555,0.3612,57411.0,57402.0,0.06918192]
[1725240961752,0.16,57406.0,57403.0,0.06918192]
[1725240961951,0.16,57406.0,57397.0,0.0864774]
[1725240961952,0.16,57404.0,57402.0,0.06918192]
[1725240962149,0.16,57404.0,57392.0,0.1371]
[1725240962150,0.1604,57403.0,57399.0,0.06918192]
[1725240962359,0.087113,57399.0,57395.0,0.06918192]
[1725240962658,0.16,57397.0,57396.0,0.06918192]
[1725240962862,0.29,57397.0,57396.0,0.06918192]
[1725240963158,0.29,57397.0,57396.0,0.06901241]
[1725240963353,0.29,57397.0,57395.0,0.15613141]
[1725240963554,0.0004,57396.0,57395.0,0.087119]
[1725240963866,0.1294,57396.0,57395.0,0.087119]
[1725240964160,0.1294,57396.0,57395.0,0.087519]
[1725240964359,0.1294,57396.0,57395.0,0.0004]
[1725240964546,0.216518,57396.0,57395.0,0.0004]
[1725240964747,0.219518,57396.0,57395.0,0.0004]
[1725240965956,0.221518,57396.0,57395.0,0.0004]
[1725240967053,0.219518,57396.0,57395.0,0.0054]
[1725240967256,0.742198,57396.0,57395.0,0.0054]
[1725240967766,0.218518,57396.0,57395.0,0.0004]
[1725240967961,0.227518,57396.0,57395.0,0.0014]
[1725240968359,0.087126,57391.0,57386.0,0.05165796]
[1725240968556,0.087139,57382.0,57381.0,0.05165796]
[1725240968759,0.2704,57382.0,57381.0,0.087141]
[1725240968967,0.21808073,57382.0,57381.0,0.087141]
[1725240969662,0.21908073,57382.0,57381.0,0.087141]
[1725240970573,0.1114,57382.0,57381.0,0.087141]
[1725240970759,0.0014,57382.0,57381.0,0.087141]
[1725240970969,0.0004,57382.0,57381.0,0.087141]
[1725240971360,0.0004,57382.0,57381.0,0.087541]
[1725240971773,0.0014,57382.0,57381.0,0.092541]
[1725240972258,0.5208,57400.0,57393.0,0.087122]
[1725240972459,0.11026118,57394.0,57393.0,0.447922]
[1725240972663,0.11026118,57394.0,57393.0,0.18079613]
[1725240973372,0.11026118,57394.0,57393.0,0.129322]
[1725240973766,0.11026118,57394.0,57393.0,0.490122]
[1725240973967,0.00026118,57394.0,57393.0,1.08147418]
[1725240974169,0.3608,57408.0,57406.0,0.087103]
[1725240974470,0.16,57407.0,57401.0,0.05144947]
[1725240974671,0.27,57407.0,57402.0,0.087109]
[1725240975967,0.27,57407.0,57403.0,0.087107]
[1725240976964,0.271,57407.0,57401.0,0.05144947]
[1725240977162,0.0004,57402.0,57401.0,0.05144947]
[1725240977481,0.1204,57402.0,57399.0,0.00026118]
[1725240977667,0.0004,57400.0,57399.0,0.00026118]
[1725240977862,0.1304,57400.0,57399.0,0.08737318]
[1725240978476,0.1304,57400.0,57399.0,0.15597248]
[1725240979075,0.0004,57400.0,57399.0,0.08737318]
[1725240979272,0.0004,57400.0,57399.0,0.15307318]
[1725240979486,0.0004,57400.0,57399.0,1.4084594]
[1725240980271,0.003,57402.0,57401.0,0.08711]
[1725240980470,0.00026118,57410.0,57409.0,0.087098]
[1725240980670,0.00026118,57410.0,57409.0,0.447898]
[1725240980969,0.247081,57421.0,57409.0,0.57957557]
[1725240981175,0.247081,57421.0,57419.0,0.05162436]
[1725240981176,0.357081,57421.0,57419.0,0.05162436]
[1725240981364,0.27,57421.0,57419.0,0.05162436]
[1725240981560,0.087082,57420.0,57419.0,0.05162436]
[1725240981770,0.087083,57419.0,57418.0,0.05162436]
[1725240981970,0.367083,57419.0,57416.0,0.087087]
[1725240982566,0.119,57419.0,57417.0,0.087086]
[1725240984165,0.123,57419.0,57417.0,0.087086]
[1725240984364,0.283,57419.0,57417.0,0.087086]
[1725240984768,0.283,57419.0,57418.0,0.05170539]
[1725240984769,0.730883,57419.0,57418.0,0.05170539]
[1725240984969,0.087085,57418.0,57417.0,0.05170539]
[1725240985280,0.087085,57418.0,57415.0,0.05170539]
[1725240985281,0.087088,57416.0,57415.0,0.05170539]
[1725240985468,0.087088,57416.0,57413.0,0.00026118]
[1725240985469,0.087089,57415.0,57413.0,0.00026118]
[1725240985665,0.0004,57414.0,57413.0,0.00026118]
[1725240985867,0.11,57414.0,57413.0,0.00026118]
[1725240986673,0.1142948,57414.0,57413.0,0.00026118]
[1725240987483,0.1142948,57414.0,57413.0,0.00126118]
[1725240987983,0.5621858,57414.0,57413.0,0.00126118]
[1725240988182,1.0847058,57414.0,57413.0,0.05302837]
[1725240988377,1.7717968,57414.0,57413.0,0.00126118]
[1725240988772,1.7817968,57414.0,57413.0,0.00126118]
[1725240988975,1.0947058,57414.0,57413.0,0.00126118]
[1725240989779,1.6947058,57414.0,57413.0,0.00126118]
[1725240990678,1.6987058,57414.0,57413.0,0.00126118]
[1725240992682,0.2153858,57414.0,57413.0,0.00126118]
[1725240993182,0.1282948,57414.0,57413.0,0.00126118]
[1725240995673,0.6508148,57414.0,57413.0,0.00126118]
[1725240996277,1.3379058,57414.0,57413.0,0.00126118]
[1725240996586,1.4249968,57414.0,57413.0,0.00126118]
[1725240998687,2.1465968,57414.0,57413.0,0.00126118]
[1725241000581,2.20007053,57414.0,57413.0,0.00126118]
[1725241001080,0.99045953,57414.0,57413.0,0.00126118]
[1725241001291,0.5761858,57414.0,57413.0,0.00126118]
[1725241002780,0.2153858,57414.0,57413.0,0.00126118]
[1725241002976,0.5761858,57414.0,57413.0,0.00126118]
[1725241003287,0.62965567,57414.0,57413.0,0.00126118]
[1725241003485,0.5761858,57414.0,57413.0,0.00126118]
[1725241003694,1.1857968,57414.0,57413.0,0.00126118]
[1725241004289,1.7857968,57414.0,57413.0,0.00126118]
[1725241006782,1.1857968,57414.0,57413.0,0.00126118]
[1725241008587,1.7857968,57414.0,57413.0,0.00126118]
[1725241009793,1.7716148,57414.0,57401.0,0.05176719]
[1725241010096,0.17423,57398.0,57397.0,0.0012]
[1725241010291,0.17423,57398.0,57384.0,0.41055016]
[1725241010292,0.087116,57397.0,57387.0,0.05176719]
[1725241010500,0.247131,57388.0,57378.0,0.275445]
[1725241010792,0.16,57384.0,57380.0,0.087142]
[1725241011097,0.29,57384.0,57378.0,0.1883]
[1725241011491,0.13,57384.0,57378.0,0.1883]
[1725241011689,0.13,57384.0,57380.0,0.087141]
[1725241012201,0.13,57384.0,57381.0,0.087141]
[1725241012502,0.13,57384.0,57382.0,0.087139]
[1725241012700,0.13,57384.0,57383.0,0.447938]
[1725241012890,0.13,57384.0,57383.0,0.970738]
[1725241013089,0.131,57384.0,57383.0,0.970738]